[Event "Titled Tuesday Blitz October 25 Late 2022"]
[White "Estrada Nieto, Julian"]
[Black "Wiegmann, Sascha"]
[WhiteFideId "5101018"]
[BlackFideId "4682041"]
[WhiteElo "2252"]
[BlackElo "2305"]
[Result "0-1"]
[Round "11"]
[TimeControl "180+1"]
[Date "2022.10.26"]
[WhiteClock "0:00:02"]
[BlackClock "0:00:01"]

1. e4 {[%clk 0:03:00]}  c5 {[%clk 0:02:56]} 2. Nf3 {[%clk 0:03:01]}  d6 {[%clk 0:02:55]} 3. d4 {[%clk 0:03:00]}  cxd4 {[%clk 0:02:56]} 4. Qxd4 {[%clk 0:03:01]}  Nc6 {[%clk 0:02:56]} 5. Bb5 {[%clk 0:03:01]}  Bd7 {[%clk 0:02:56]} 6. Bxc6 {[%clk 0:03:01]}  bxc6 {[%clk 0:02:57]} 7. Nc3 {[%clk 0:02:58]}  e5 {[%clk 0:02:57]} 8. Qd3 {[%clk 0:02:58]}  Be7 {[%clk 0:02:58]} 9. O-O {[%clk 0:02:55]}  Nf6 {[%clk 0:02:58]} 10. b3 {[%clk 0:02:56]}  O-O {[%clk 0:02:57]} 11. Bg5 {[%clk 0:02:48]}  Be6 {[%clk 0:02:48]} 12. Bxf6 {[%clk 0:02:47]}  Bxf6 {[%clk 0:02:45]} 13. Rfd1 {[%clk 0:02:48]}  Be7 {[%clk 0:02:44]} 14. Na4 {[%clk 0:02:45]}  Qa5 {[%clk 0:02:37]} 15. c4 {[%clk 0:02:41]}  Rab8 {[%clk 0:02:35]} 16. Qc3 {[%clk 0:02:38]}  Rb4 {[%clk 0:02:27]} 17. Nb2 {[%clk 0:02:27]}  Rb5 {[%clk 0:01:32]} 18. Qxa5 {[%clk 0:02:03]}  Rxa5 {[%clk 0:01:33]} 19. Nd3 {[%clk 0:02:01]}  c5 {[%clk 0:01:24]} 20. Nb2 {[%clk 0:01:55]}  Rb8 {[%clk 0:01:22]} 21. Na4 {[%clk 0:01:54]}  Bxc4 {[%clk 0:01:13]} 22. Nc3 {[%clk 0:01:52]}  Be6 {[%clk 0:01:11]} 23. Nd2 {[%clk 0:01:51]}  Bf8 {[%clk 0:00:57]} 24. Kf1 {[%clk 0:01:47]}  Rb4 {[%clk 0:00:54]} 25. Ke2 {[%clk 0:01:38]}  Rd4 {[%clk 0:00:54]} 26. Nf3 {[%clk 0:01:35]}  f6 {[%clk 0:00:38]} 27. h3 {[%clk 0:01:20]}  Rxd1 {[%clk 0:00:32]} 28. Rxd1 {[%clk 0:01:20]}  c4 {[%clk 0:00:33]} 29. b4 {[%clk 0:01:18]}  Ra3 {[%clk 0:00:31]} 30. Rc1 {[%clk 0:01:17]}  Kf7 {[%clk 0:00:28]} 31. Rc2 {[%clk 0:01:16]}  Bd7 {[%clk 0:00:22]} 32. Nd2 {[%clk 0:01:13]}  d5 {[%clk 0:00:20]} 33. Nxd5 {[%clk 0:01:09]}  c3 {[%clk 0:00:18]} 34. Nb1 {[%clk 0:00:53]}  Bb5+ {[%clk 0:00:11]} 35. Ke3 {[%clk 0:00:51]}  Ra4 {[%clk 0:00:10]} 36. Nbxc3 {[%clk 0:00:49]}  Ra3 {[%clk 0:00:08]} 37. Kd2 {[%clk 0:00:39]}  Bc4 {[%clk 0:00:08]} 38. Ne3 {[%clk 0:00:34]}  Be6 {[%clk 0:00:07]} 39. Ncd5 {[%clk 0:00:34]}  Ra4 {[%clk 0:00:04]} 40. Rc7+ {[%clk 0:00:25]}  Kg6 {[%clk 0:00:04]} 41. Rc2 {[%clk 0:00:13]}  Bxb4+ {[%clk 0:00:02]} 42. Nxb4 {[%clk 0:00:10]}  Rxb4 {[%clk 0:00:03]} 43. f3 {[%clk 0:00:09]}  Ra4 {[%clk 0:00:03]} 44. Nd5 {[%clk 0:00:08]}  Ra5 {[%clk 0:00:02]} 45. Nc7 {[%clk 0:00:07]}  Bf7 {[%clk 0:00:01]} 46. g4 {[%clk 0:00:06]}  Rxa2 {[%clk 0:00:01]} 47. Rxa2 {[%clk 0:00:05]}  Bxa2 {[%clk 0:00:02]} 48. Ke3 {[%clk 0:00:05]}  Kg5 {[%clk 0:00:02]} 49. Nb5 {[%clk 0:00:05]}  a6 {[%clk 0:00:02]} 50. Nd6 {[%clk 0:00:05]}  a5 {[%clk 0:00:02]} 51. Ne8 {[%clk 0:00:03]}  g6 {[%clk 0:00:02]} 52. Nd6 {[%clk 0:00:03]}  Be6 {[%clk 0:00:01]} 53. Nb5 {[%clk 0:00:01]}  a4 {[%clk 0:00:01]} 54. Na3 {[%clk 0:00:02]}  Kh4 {[%clk 0:00:01]} 0-1


[Site "https://www.chess.com"]

[Event "Titled Tuesday Blitz October 25 Late 2022"]
[White "Ferreira, Vitor Hugo Vieira"]
[Black "Averjanov, Alexey"]
[WhiteFideId "2119765"]
[BlackFideId "14109867"]
[WhiteElo "2168"]
[BlackElo "2654"]
[Result "0-1"]
[Round "11"]
[TimeControl "180+1"]
[Date "2022.10.26"]
[WhiteClock "0:01:14"]
[BlackClock "0:00:39"]

1. Nf3 {[%clk 0:03:00]}  d5 {[%clk 0:02:59]} 2. g3 {[%clk 0:03:01]}  c6 {[%clk 0:02:58]} 3. Bg2 {[%clk 0:03:01]}  Nf6 {[%clk 0:02:59]} 4. O-O {[%clk 0:03:02]}  Bf5 {[%clk 0:02:59]} 5. c4 {[%clk 0:03:03]}  e6 {[%clk 0:02:59]} 6. cxd5 {[%clk 0:03:03]}  exd5 {[%clk 0:02:59]} 7. d3 {[%clk 0:03:04]}  Be7 {[%clk 0:02:58]} 8. Nc3 {[%clk 0:03:04]}  O-O {[%clk 0:02:58]} 9. Nd4 {[%clk 0:03:05]}  Bg6 {[%clk 0:02:57]} 10. e4 {[%clk 0:03:05]}  Nbd7 {[%clk 0:02:49]} 11. Kh1 {[%clk 0:02:55]}  Re8 {[%clk 0:02:46]} 12. f4 {[%clk 0:02:53]}  dxe4 {[%clk 0:02:46]} 13. dxe4 {[%clk 0:02:51]}  Qb6 {[%clk 0:02:32]} 14. e5 {[%clk 0:02:46]}  Bh5 {[%clk 0:02:31]} 15. Nf3 {[%clk 0:02:39]}  Ng4 {[%clk 0:02:27]} 16. Qe2 {[%clk 0:02:39]}  Bc5 {[%clk 0:02:14]} 17. Na4 {[%clk 0:02:34]}  Qa5 {[%clk 0:01:43]} 18. Nxc5 {[%clk 0:02:33]}  Nxc5 {[%clk 0:01:44]} 19. h3 {[%clk 0:02:31]}  Nh6 {[%clk 0:01:38]} 20. g4 {[%clk 0:02:29]}  Nxg4 {[%clk 0:01:37]} 21. hxg4 {[%clk 0:02:29]}  Bxg4 {[%clk 0:01:38]} 22. Qe1 {[%clk 0:02:27]}  Qb5 {[%clk 0:01:32]} 23. Qg3 {[%clk 0:02:24]}  h5 {[%clk 0:01:28]} 24. Nh2 {[%clk 0:02:19]}  Bf5 {[%clk 0:01:22]} 25. Be3 {[%clk 0:02:15]}  Ne4 {[%clk 0:01:20]} 26. Qh4 {[%clk 0:02:14]}  g6 {[%clk 0:01:13]} 27. b3 {[%clk 0:02:07]}  Rad8 {[%clk 0:01:12]} 28. Rad1 {[%clk 0:01:50]}  Rd3 {[%clk 0:01:11]} 29. Rxd3 {[%clk 0:01:50]}  Qxd3 {[%clk 0:01:12]} 30. Qe1 {[%clk 0:01:42]}  h4 {[%clk 0:01:08]} 31. Bf2 {[%clk 0:01:38]}  h3 {[%clk 0:01:07]} 32. Bf3 {[%clk 0:01:37]}  Rd8 {[%clk 0:01:03]} 33. Qe2 {[%clk 0:01:37]}  Qxe2 {[%clk 0:00:59]} 34. Bxe2 {[%clk 0:01:37]}  Rd2 {[%clk 0:01:00]} 35. Ng4 {[%clk 0:01:22]}  Rxe2 {[%clk 0:00:59]} 36. Nh6+ {[%clk 0:01:21]}  Kh7 {[%clk 0:00:55]} 37. Nxf5 {[%clk 0:01:21]}  Nxf2+ {[%clk 0:00:55]} 38. Kg1 {[%clk 0:01:19]}  Ne4 {[%clk 0:00:39]} 39. Nh4 {[%clk 0:01:16]}  h2+ {[%clk 0:00:38]} 40. Kh1 {[%clk 0:01:14]}  Ng3# {[%clk 0:00:39]} 0-1


[Site "https://www.chess.com"]

[Event "Titled Tuesday Blitz October 25 Late 2022"]
[White "Gardezi, Arsal"]
[Black "Luxama, Jacques Muller"]
[WhiteFideId "30949521"]
[BlackFideId "11900113"]
[WhiteElo "1906"]
[BlackElo "1931"]
[Result "1-0"]
[Round "11"]
[TimeControl "180+1"]
[Date "2022.10.26"]
[WhiteClock "0:00:16"]
[BlackClock "0:00:07"]

1. e4 {[%clk 0:02:55]}  c5 {[%clk 0:02:57]} 2. Nf3 {[%clk 0:02:54]}  d6 {[%clk 0:02:56]} 3. d4 {[%clk 0:02:54]}  cxd4 {[%clk 0:02:56]} 4. Nxd4 {[%clk 0:02:55]}  Nf6 {[%clk 0:02:56]} 5. Nc3 {[%clk 0:02:55]}  a6 {[%clk 0:02:55]} 6. f3 {[%clk 0:02:55]}  e5 {[%clk 0:02:49]} 7. Nb3 {[%clk 0:02:52]}  Be7 {[%clk 0:02:49]} 8. Be3 {[%clk 0:02:52]}  Be6 {[%clk 0:02:48]} 9. Qd2 {[%clk 0:02:49]}  Nbd7 {[%clk 0:02:46]} 10. O-O-O {[%clk 0:02:49]}  b5 {[%clk 0:02:44]} 11. g4 {[%clk 0:02:44]}  Nb6 {[%clk 0:02:41]} 12. g5 {[%clk 0:02:29]}  Nfd7 {[%clk 0:02:39]} 13. Nd5 {[%clk 0:02:29]}  Nxd5 {[%clk 0:02:20]} 14. exd5 {[%clk 0:02:27]}  Bf5 {[%clk 0:02:19]} 15. Na5 {[%clk 0:02:22]}  O-O {[%clk 0:01:46]} 16. Nc6 {[%clk 0:02:13]}  Qe8 {[%clk 0:01:45]} 17. Bd3 {[%clk 0:02:11]}  Bxd3 {[%clk 0:01:40]} 18. Qxd3 {[%clk 0:02:12]}  Nb8 {[%clk 0:01:39]} 19. Nxe7+ {[%clk 0:02:00]}  Qxe7 {[%clk 0:01:38]} 20. h4 {[%clk 0:02:01]}  Nd7 {[%clk 0:01:30]} 21. h5 {[%clk 0:01:58]}  f5 {[%clk 0:01:30]} 22. gxf6 {[%clk 0:01:54]}  Nxf6 {[%clk 0:01:29]} 23. Kb1 {[%clk 0:01:52]}  e4 {[%clk 0:01:24]} 24. fxe4 {[%clk 0:01:51]}  Qxe4 {[%clk 0:01:23]} 25. Qxe4 {[%clk 0:01:45]}  Nxe4 {[%clk 0:01:22]} 26. Rhg1 {[%clk 0:01:46]}  Nf6 {[%clk 0:01:12]} 27. Bf4 {[%clk 0:01:36]}  Rad8 {[%clk 0:01:08]} 28. h6 {[%clk 0:01:23]}  g6 {[%clk 0:01:07]} 29. Bg5 {[%clk 0:01:24]}  Rde8 {[%clk 0:01:04]} 30. a4 {[%clk 0:01:03]}  Ne4 {[%clk 0:01:02]} 31. Bc1 {[%clk 0:00:57]}  Rf5 {[%clk 0:00:56]} 32. axb5 {[%clk 0:00:47]}  axb5 {[%clk 0:00:56]} 33. Rd4 {[%clk 0:00:41]}  Ree5 {[%clk 0:00:54]} 34. Rb4 {[%clk 0:00:34]}  Nf6 {[%clk 0:00:29]} 35. Rxb5 {[%clk 0:00:31]}  Rxd5 {[%clk 0:00:28]} 36. Rb8+ {[%clk 0:00:27]}  Kf7 {[%clk 0:00:27]} 37. Rb7+ {[%clk 0:00:27]}  Ke6 {[%clk 0:00:24]} 38. b4 {[%clk 0:00:19]}  Rf2 {[%clk 0:00:18]} 39. Re1+ {[%clk 0:00:19]}  Kf5 {[%clk 0:00:16]} 40. Bb2 {[%clk 0:00:15]}  Rdd2 {[%clk 0:00:11]} 41. Rf7 {[%clk 0:00:15]}  Kg5 {[%clk 0:00:07]} 42. Bc1 {[%clk 0:00:16]} 1-0


[Site "https://www.chess.com"]

[Event "Titled Tuesday Blitz October 25 Late 2022"]
[White "Gedgafov, Chamal"]
[Black "Barria Zuniga, Daniel"]
[WhiteFideId "34130621"]
[BlackFideId "3400816"]
[WhiteElo "2067"]
[BlackElo "2414"]
[Result "0-1"]
[Round "11"]
[TimeControl "180+1"]
[Date "2022.10.26"]
[WhiteClock "0:00:48"]
[BlackClock "0:00:20"]

1. c4 {[%clk 0:03:00]}  e6 {[%clk 0:02:55]} 2. Nf3 {[%clk 0:02:57]}  d5 {[%clk 0:02:56]} 3. e3 {[%clk 0:02:56]}  Nf6 {[%clk 0:02:55]} 4. b3 {[%clk 0:02:57]}  g6 {[%clk 0:02:54]} 5. Bb2 {[%clk 0:02:57]}  Bg7 {[%clk 0:02:54]} 6. d4 {[%clk 0:02:57]}  O-O {[%clk 0:02:54]} 7. Nc3 {[%clk 0:02:58]}  b6 {[%clk 0:02:52]} 8. Be2 {[%clk 0:02:58]}  Bb7 {[%clk 0:02:45]} 9. O-O {[%clk 0:02:57]}  Qe7 {[%clk 0:02:45]} 10. Ne5 {[%clk 0:02:57]}  Rd8 {[%clk 0:02:45]} 11. Rc1 {[%clk 0:02:55]}  a6 {[%clk 0:02:39]} 12. cxd5 {[%clk 0:02:55]}  exd5 {[%clk 0:02:37]} 13. Bf3 {[%clk 0:02:51]}  b5 {[%clk 0:02:22]} 14. a4 {[%clk 0:02:49]}  c6 {[%clk 0:02:17]} 15. Nb1 {[%clk 0:02:47]}  Ne4 {[%clk 0:02:12]} 16. Bxe4 {[%clk 0:02:47]}  dxe4 {[%clk 0:02:12]} 17. Ba3 {[%clk 0:02:42]}  Qe6 {[%clk 0:02:11]} 18. Qc2 {[%clk 0:02:26]}  f6 {[%clk 0:01:52]} 19. Nc4 {[%clk 0:02:22]}  bxc4 {[%clk 0:01:51]} 20. bxc4 {[%clk 0:02:22]}  a5 {[%clk 0:01:45]} 21. Nc3 {[%clk 0:02:16]}  Qxc4 {[%clk 0:01:40]} 22. Qxe4 {[%clk 0:02:16]}  Na6 {[%clk 0:01:37]} 23. Qe7 {[%clk 0:02:12]}  Qf7 {[%clk 0:01:36]} 24. Qe4 {[%clk 0:02:13]}  c5 {[%clk 0:01:32]} 25. Qh4 {[%clk 0:02:09]}  cxd4 {[%clk 0:01:31]} 26. exd4 {[%clk 0:02:10]}  Nb4 {[%clk 0:01:29]} 27. Nb5 {[%clk 0:02:08]}  Rd7 {[%clk 0:01:27]} 28. Rc5 {[%clk 0:01:57]}  Rad8 {[%clk 0:01:23]} 29. Rfc1 {[%clk 0:01:55]}  Nd3 {[%clk 0:01:10]} 30. h3 {[%clk 0:01:52]}  Nxc1 {[%clk 0:01:09]} 31. Rxc1 {[%clk 0:01:53]}  Ba6 {[%clk 0:01:00]} 32. Bc5 {[%clk 0:01:47]}  Bxb5 {[%clk 0:00:56]} 33. axb5 {[%clk 0:01:48]}  f5 {[%clk 0:00:56]} 34. Rd1 {[%clk 0:01:43]}  a4 {[%clk 0:00:55]} 35. b6 {[%clk 0:01:36]}  Qb3 {[%clk 0:00:49]} 36. Rc1 {[%clk 0:01:31]}  a3 {[%clk 0:00:48]} 37. b7 {[%clk 0:01:29]}  a2 {[%clk 0:00:45]} 38. Be7 {[%clk 0:01:21]}  Qxb7 {[%clk 0:00:25]} 39. Bxd8 {[%clk 0:01:18]}  Qb1 {[%clk 0:00:25]} 40. Bg5 {[%clk 0:01:05]}  Qxc1+ {[%clk 0:00:23]} 41. Bxc1 {[%clk 0:01:02]}  a1=Q {[%clk 0:00:23]} 42. Qf4 {[%clk 0:01:02]}  Qxd4 {[%clk 0:00:19]} 43. Qb8+ {[%clk 0:01:00]}  Rd8 {[%clk 0:00:19]} 44. Qb3+ {[%clk 0:01:00]}  Qd5 {[%clk 0:00:19]} 45. Qa3 {[%clk 0:00:58]}  Qd1+ {[%clk 0:00:19]} 46. Kh2 {[%clk 0:00:58]}  Qd6+ {[%clk 0:00:20]} 47. Qxd6 {[%clk 0:00:56]}  Rxd6 {[%clk 0:00:20]} 48. Be3 {[%clk 0:00:56]}  Rc6 {[%clk 0:00:21]} 49. g3 {[%clk 0:00:56]}  Kf7 {[%clk 0:00:22]} 50. Kg2 {[%clk 0:00:57]}  h5 {[%clk 0:00:23]} 51. Kf3 {[%clk 0:00:57]}  Ke6 {[%clk 0:00:23]} 52. h4 {[%clk 0:00:57]}  Be5 {[%clk 0:00:23]} 53. Ke2 {[%clk 0:00:57]}  Kd5 {[%clk 0:00:24]} 54. Kd3 {[%clk 0:00:56]}  Ra6 {[%clk 0:00:23]} 55. Ke2 {[%clk 0:00:57]}  Ra4 {[%clk 0:00:21]} 56. Bg5 {[%clk 0:00:57]}  Bd4 {[%clk 0:00:21]} 57. f3 {[%clk 0:00:55]}  Ra2+ {[%clk 0:00:21]} 58. Kd3 {[%clk 0:00:54]}  Ra3+ {[%clk 0:00:21]} 59. Ke2 {[%clk 0:00:54]}  Kc4 {[%clk 0:00:21]} 60. Bf4 {[%clk 0:00:52]}  Ra2+ {[%clk 0:00:21]} 61. Kf1 {[%clk 0:00:52]}  Kd3 {[%clk 0:00:22]} 62. Bd6 {[%clk 0:00:50]}  Rf2+ {[%clk 0:00:21]} 63. Kg1 {[%clk 0:00:49]}  Rxf3+ {[%clk 0:00:21]} 64. Kg2 {[%clk 0:00:50]}  Ke4 {[%clk 0:00:21]} 65. Bc7 {[%clk 0:00:49]}  Rd3 {[%clk 0:00:21]} 66. Bb8 {[%clk 0:00:48]}  Be5 {[%clk 0:00:21]} 67. Ba7 {[%clk 0:00:47]}  Rxg3+ {[%clk 0:00:21]} 68. Kh1 {[%clk 0:00:48]}  Rd3 {[%clk 0:00:21]} 69. Kg2 {[%clk 0:00:48]}  Rd7 {[%clk 0:00:21]} 70. Bb8 {[%clk 0:00:48]}  Bxb8 {[%clk 0:00:20]} 0-1


[Site "https://www.chess.com"]

[Event "Titled Tuesday Blitz October 25 Late 2022"]
[White "Gireman, Ja"]
[Black "Hoffmann, Asa"]
[WhiteFideId "5043794"]
[BlackFideId "2001470"]
[WhiteElo "2153"]
[BlackElo "2117"]
[Result "0-1"]
[Round "11"]
[TimeControl "180+1"]
[Date "2022.10.26"]
[WhiteClock "0:00:22"]
[BlackClock "0:00:28"]

1. d4 {[%clk 0:03:00]}  Nf6 {[%clk 0:02:56]} 2. Nc3 {[%clk 0:02:59]}  d6 {[%clk 0:02:52]} 3. e4 {[%clk 0:02:59]}  c6 {[%clk 0:02:49]} 4. Nf3 {[%clk 0:02:59]}  Bg4 {[%clk 0:02:48]} 5. h3 {[%clk 0:02:58]}  Bh5 {[%clk 0:02:48]} 6. g4 {[%clk 0:02:59]}  Bg6 {[%clk 0:02:48]} 7. Bd3 {[%clk 0:02:59]}  e6 {[%clk 0:02:47]} 8. Qe2 {[%clk 0:02:58]}  d5 {[%clk 0:02:47]} 9. Bg5 {[%clk 0:02:36]}  Be7 {[%clk 0:02:43]} 10. Bxf6 {[%clk 0:02:25]}  Bxf6 {[%clk 0:02:33]} 11. O-O-O {[%clk 0:02:25]}  Nd7 {[%clk 0:02:30]} 12. h4 {[%clk 0:02:25]}  h5 {[%clk 0:02:30]} 13. exd5 {[%clk 0:01:44]}  Bxd3 {[%clk 0:02:27]} 14. Rxd3 {[%clk 0:01:44]}  cxd5 {[%clk 0:02:24]} 15. g5 {[%clk 0:01:39]}  Be7 {[%clk 0:02:23]} 16. g6 {[%clk 0:01:40]}  Nf8 {[%clk 0:02:01]} 17. gxf7+ {[%clk 0:01:39]}  Kxf7 {[%clk 0:02:01]} 18. Ne5+ {[%clk 0:01:40]}  Kg8 {[%clk 0:02:01]} 19. Rg3 {[%clk 0:01:39]}  Bf6 {[%clk 0:01:51]} 20. Rhg1 {[%clk 0:01:39]}  Rh7 {[%clk 0:01:49]} 21. f4 {[%clk 0:01:31]}  Rc8 {[%clk 0:01:39]} 22. R3g2 {[%clk 0:01:22]}  Qa5 {[%clk 0:01:34]} 23. Nd7 {[%clk 0:01:10]}  Nxd7 {[%clk 0:01:20]} 24. Qxe6+ {[%clk 0:01:10]}  Kh8 {[%clk 0:01:20]} 25. Qxd7 {[%clk 0:01:10]}  Rd8 {[%clk 0:00:53]} 26. Qf7 {[%clk 0:00:57]}  Qb4 {[%clk 0:00:42]} 27. Re1 {[%clk 0:00:38]}  Qf8 {[%clk 0:00:37]} 28. Qxf8+ {[%clk 0:00:33]}  Rxf8 {[%clk 0:00:37]} 29. Nxd5 {[%clk 0:00:34]}  Bxh4 {[%clk 0:00:35]} 30. f5 {[%clk 0:00:32]}  Bxe1 {[%clk 0:00:35]} 31. Re2 {[%clk 0:00:31]}  Bh4 {[%clk 0:00:33]} 32. c4 {[%clk 0:00:30]}  Bf6 {[%clk 0:00:33]} 33. Kc2 {[%clk 0:00:29]}  Bxd4 {[%clk 0:00:33]} 34. Nf4 {[%clk 0:00:28]}  Kg8 {[%clk 0:00:30]} 35. Ne6 {[%clk 0:00:26]}  Re8 {[%clk 0:00:29]} 36. b4 {[%clk 0:00:21]}  Bf6 {[%clk 0:00:28]} 37. c5 {[%clk 0:00:21]}  h4 {[%clk 0:00:28]} 38. b5 {[%clk 0:00:21]}  h3 {[%clk 0:00:28]} 39. c6 {[%clk 0:00:21]}  bxc6 {[%clk 0:00:28]} 40. bxc6 {[%clk 0:00:21]}  h2 {[%clk 0:00:28]} 41. c7 {[%clk 0:00:22]}  Rc8 {[%clk 0:00:28]} 0-1


[Site "https://www.chess.com"]

[Event "Titled Tuesday Blitz October 25 Late 2022"]
[White "Goncalves, Davi Sulzbacher"]
[Black "Makarian, Rudik"]
[WhiteFideId "2154510"]
[BlackFideId "44105681"]
[WhiteElo "2182"]
[BlackElo "2405"]
[Result "0-1"]
[Round "11"]
[TimeControl "180+1"]
[Date "2022.10.26"]
[WhiteClock "0:00:01"]
[BlackClock "0:00:41"]

1. Nf3 {[%clk 0:03:00]}  Nf6 {[%clk 0:03:00]} 2. g3 {[%clk 0:03:00]}  b5 {[%clk 0:03:00]} 3. Bg2 {[%clk 0:03:00]}  Bb7 {[%clk 0:03:01]} 4. O-O {[%clk 0:03:01]}  e6 {[%clk 0:03:01]} 5. d4 {[%clk 0:03:01]}  Bd6 {[%clk 0:03:01]} 6. a4 {[%clk 0:02:54]}  b4 {[%clk 0:03:01]} 7. c4 {[%clk 0:02:54]}  c5 {[%clk 0:02:57]} 8. d5 {[%clk 0:02:42]}  O-O {[%clk 0:02:53]} 9. Bg5 {[%clk 0:02:26]}  exd5 {[%clk 0:02:44]} 10. Nh4 {[%clk 0:02:13]}  Be5 {[%clk 0:02:43]} 11. Nd2 {[%clk 0:01:56]}  Bxb2 {[%clk 0:02:35]} 12. cxd5 {[%clk 0:01:54]}  h6 {[%clk 0:02:34]} 13. Bxf6 {[%clk 0:01:51]}  Bxf6 {[%clk 0:02:35]} 14. Rc1 {[%clk 0:01:50]}  d6 {[%clk 0:02:34]} 15. Ne4 {[%clk 0:01:38]}  g6 {[%clk 0:02:27]} 16. Nf3 {[%clk 0:01:19]}  Bg7 {[%clk 0:02:26]} 17. Nfd2 {[%clk 0:01:14]}  Ba6 {[%clk 0:02:23]} 18. Re1 {[%clk 0:01:10]}  Re8 {[%clk 0:02:22]} 19. e3 {[%clk 0:00:59]}  f5 {[%clk 0:02:20]} 20. Nxc5 {[%clk 0:00:56]}  dxc5 {[%clk 0:02:21]} 21. d6 {[%clk 0:00:56]}  Nd7 {[%clk 0:02:21]} 22. Bd5+ {[%clk 0:00:53]}  Kh7 {[%clk 0:02:21]} 23. e4 {[%clk 0:00:48]}  f4 {[%clk 0:01:57]} 24. gxf4 {[%clk 0:00:39]}  Qh4 {[%clk 0:01:57]} 25. Qf3 {[%clk 0:00:34]}  Rad8 {[%clk 0:01:54]} 26. e5 {[%clk 0:00:33]}  Nxe5 {[%clk 0:01:51]} 27. fxe5 {[%clk 0:00:32]}  Rxe5 {[%clk 0:01:51]} 28. Rxe5 {[%clk 0:00:22]}  Bxe5 {[%clk 0:01:52]} 29. Qf7+ {[%clk 0:00:22]}  Bg7 {[%clk 0:01:52]} 30. Nf3 {[%clk 0:00:18]}  Qg4+ {[%clk 0:01:51]} 31. Kh1 {[%clk 0:00:19]}  Qf5 {[%clk 0:01:43]} 32. Qxf5 {[%clk 0:00:12]}  gxf5 {[%clk 0:01:43]} 33. Rxc5 {[%clk 0:00:08]}  Rxd6 {[%clk 0:01:20]} 34. Kg2 {[%clk 0:00:08]}  Rg6+ {[%clk 0:01:10]} 35. Kh1 {[%clk 0:00:04]}  Bd3 {[%clk 0:01:07]} 36. Bf7 {[%clk 0:00:01]}  Be4 {[%clk 0:00:55]} 37. Bxg6+ {[%clk 0:00:01]}  Kxg6 {[%clk 0:00:56]} 38. Kg2 {[%clk 0:00:01]}  b3 {[%clk 0:00:57]} 39. Rc4 {[%clk 0:00:01]}  b2 {[%clk 0:00:53]} 40. Rb4 {[%clk 0:00:02]}  b1=Q {[%clk 0:00:52]} 41. Rxb1 {[%clk 0:00:03]}  Bxb1 {[%clk 0:00:53]} 42. Nh4+ {[%clk 0:00:03]}  Kh5 {[%clk 0:00:52]} 43. Kh3 {[%clk 0:00:03]}  Be4 {[%clk 0:00:51]} 44. f3 {[%clk 0:00:02]}  Bf6 {[%clk 0:00:48]} 45. Ng2 {[%clk 0:00:03]}  Bxf3 {[%clk 0:00:46]} 46. Nf4+ {[%clk 0:00:04]}  Kg5 {[%clk 0:00:47]} 47. Ne6+ {[%clk 0:00:04]}  Kg6 {[%clk 0:00:48]} 48. Nf4+ {[%clk 0:00:04]}  Kf7 {[%clk 0:00:48]} 49. Nd3 {[%clk 0:00:04]}  Bc6 {[%clk 0:00:45]} 50. a5 {[%clk 0:00:04]}  Bc3 {[%clk 0:00:44]} 51. a6 {[%clk 0:00:03]}  Kf6 {[%clk 0:00:45]} 52. Kg3 {[%clk 0:00:02]}  Bb5 {[%clk 0:00:42]} 53. Nc5 {[%clk 0:00:01]}  Be5+ {[%clk 0:00:41]} 0-1


[Site "https://www.chess.com"]

[Event "Titled Tuesday Blitz October 25 Late 2022"]
[White "Gonzalez, Francisco Silva"]
[Black "Jimenez Fernandez, Rebeca"]
[WhiteFideId "1512285"]
[BlackFideId "32070934"]
[WhiteElo "2159"]
[BlackElo "1946"]
[Result "1-0"]
[Round "11"]
[TimeControl "180+1"]
[Date "2022.10.26"]
[WhiteClock "0:00:14"]
[BlackClock "0:00:01"]

1. d4 {[%clk 0:03:00]}  d5 {[%clk 0:02:58]} 2. c4 {[%clk 0:03:00]}  c6 {[%clk 0:02:57]} 3. Nc3 {[%clk 0:02:59]}  Nf6 {[%clk 0:02:57]} 4. e3 {[%clk 0:02:58]}  e6 {[%clk 0:02:57]} 5. Nf3 {[%clk 0:02:57]}  Nbd7 {[%clk 0:02:57]} 6. Bd3 {[%clk 0:02:57]}  dxc4 {[%clk 0:02:57]} 7. Bxc4 {[%clk 0:02:57]}  b5 {[%clk 0:02:58]} 8. Be2 {[%clk 0:02:58]}  a6 {[%clk 0:02:59]} 9. e4 {[%clk 0:02:57]}  c5 {[%clk 0:02:58]} 10. e5 {[%clk 0:02:57]}  Ng8 {[%clk 0:02:39]} 11. Ne4 {[%clk 0:02:47]}  Bb7 {[%clk 0:02:28]} 12. Nc3 {[%clk 0:02:04]}  cxd4 {[%clk 0:02:25]} 13. Qxd4 {[%clk 0:02:04]}  Bc5 {[%clk 0:02:24]} 14. Qf4 {[%clk 0:02:02]}  Ne7 {[%clk 0:02:20]} 15. Ng5 {[%clk 0:01:57]}  O-O {[%clk 0:02:14]} 16. Bd3 {[%clk 0:01:27]}  Ng6 {[%clk 0:02:05]} 17. Qg3 {[%clk 0:01:24]}  Ndxe5 {[%clk 0:02:00]} 18. Bc2 {[%clk 0:01:23]}  h6 {[%clk 0:01:31]} 19. f4 {[%clk 0:00:58]}  hxg5 {[%clk 0:01:18]} 20. fxe5 {[%clk 0:00:58]}  Qd4 {[%clk 0:01:12]} 21. Bxg5 {[%clk 0:00:55]}  Qxe5+ {[%clk 0:00:38]} 22. Qxe5 {[%clk 0:00:54]}  Nxe5 {[%clk 0:00:38]} 23. Be4 {[%clk 0:00:42]}  Bxe4 {[%clk 0:00:31]} 24. Nxe4 {[%clk 0:00:31]}  Bb4+ {[%clk 0:00:31]} 25. Ke2 {[%clk 0:00:31]}  Rac8 {[%clk 0:00:28]} 26. Rac1 {[%clk 0:00:26]}  f6 {[%clk 0:00:17]} 27. Bh4 {[%clk 0:00:17]}  Ng6 {[%clk 0:00:16]} 28. Bg3 {[%clk 0:00:17]}  e5 {[%clk 0:00:16]} 29. a3 {[%clk 0:00:17]}  Ba5 {[%clk 0:00:14]} 30. Rhd1 {[%clk 0:00:16]}  Rfd8 {[%clk 0:00:12]} 31. Rxd8+ {[%clk 0:00:15]}  Rxd8 {[%clk 0:00:12]} 32. Rc6 {[%clk 0:00:15]}  Ne7 {[%clk 0:00:11]} 33. Rxa6 {[%clk 0:00:15]}  Bc7 {[%clk 0:00:07]} 34. Ra7 {[%clk 0:00:15]}  Rc8 {[%clk 0:00:05]} 35. Rb7 {[%clk 0:00:15]}  Nf5 {[%clk 0:00:05]} 36. Kd3 {[%clk 0:00:15]}  Rd8+ {[%clk 0:00:05]} 37. Kc3 {[%clk 0:00:15]}  Ba5+ {[%clk 0:00:05]} 38. b4 {[%clk 0:00:14]}  Rc8+ {[%clk 0:00:01]} 39. Kb2 {[%clk 0:00:14]} 1-0


[Site "https://www.chess.com"]